[Event "FIDE World Rapid Chess Championship 2021"]
[White "Peng, Li Min"]
[Black "Smirin, Ilia"]
[WhiteFideId "14112620"]
[BlackFideId "2801990"]
[WhiteElo "2411"]
[BlackElo "2663"]
[Result "0-1"]
[Round "09"]
[TimeControl "900+10"]
[Date "2021.12.27"]
[WhiteClock "0:00:37"]
[BlackClock "0:06:53"]

1. Nf3 {[%clk 0:15:00]}  c5 {[%clk 0:15:00]} 2. e4 {[%clk 0:15:00]}  e6 {[%clk 0:15:00]} 3. c4 {[%clk 0:15:00]}  Nc6 {[%clk 0:15:00]} 4. Nc3 {[%clk 0:15:00]}  Nd4 {[%clk 0:15:00]} 5. d3 {[%clk 0:15:00]}  Ne7 {[%clk 0:15:00]} 6. g3 {[%clk 0:15:00]}  Nxf3+ {[%clk 0:15:00]} 7. Qxf3 {[%clk 0:15:00]}  Nc6 {[%clk 0:15:00]} 8. Bg2 {[%clk 0:15:00]}  g6 {[%clk 0:15:00]} 9. Be3 {[%clk 0:15:00]}  d6 {[%clk 0:15:00]} 10. Qe2 {[%clk 0:15:00]}  Bg7 {[%clk 0:00:48]} 11. Qd2 {[%clk 0:10:55]}  h5 {[%clk 0:13:41]} 12. Ne2 {[%clk 0:10:55]}  h4 {[%clk 0:13:41]} 13. d4 {[%clk 0:10:55]}  h3 {[%clk 0:12:49]} 14. Bf3 {[%clk 0:09:32]}  Qf6 {[%clk 0:12:49]} 15. Bg4 {[%clk 0:09:32]}  cxd4 {[%clk 0:12:49]} 16. Bf4 {[%clk 0:09:32]}  Ne5 {[%clk 0:12:49]} 17. Bxe5 {[%clk 0:08:11]}  Qxe5 {[%clk 0:12:08]} 18. Qd3 {[%clk 0:08:11]}  Qa5+ {[%clk 0:12:08]} 19. Kf1 {[%clk 0:08:11]}  d5 {[%clk 0:10:12]} 20. Nxd4 {[%clk 0:07:43]}  dxc4 {[%clk 0:09:29]} 21. Qc3 {[%clk 0:05:57]}  Qb6 {[%clk 0:08:31]} 22. Rd1 {[%clk 0:04:36]}  O-O {[%clk 0:08:31]} 23. e5 {[%clk 0:04:36]}  Bxe5 {[%clk 0:08:31]} 24. Qe3 {[%clk 0:02:31]}  Bg7 {[%clk 0:08:09]} 25. Nf3 {[%clk 0:02:31]}  Qxb2 {[%clk 0:08:09]} 26. Bxh3 {[%clk 0:02:31]}  c3 {[%clk 0:08:09]} 27. Kg2 {[%clk 0:02:31]}  c2 {[%clk 0:08:09]} 28. Rc1 {[%clk 0:02:31]}  Bd7 {[%clk 0:08:09]} 29. Bg4 {[%clk 0:02:31]}  Bc6 {[%clk 0:08:09]} 30. h4 {[%clk 0:02:31]}  Qb4 {[%clk 0:07:08]} 31. Kh3 {[%clk 0:02:28]}  f5 {[%clk 0:07:08]} 32. Qxe6+ {[%clk 0:02:28]}  Kh8 {[%clk 0:07:08]} 33. h5 {[%clk 0:00:37]}  Qxg4+ {[%clk 0:06:53]} 34. Kh2 {[%clk 0:00:37]}  Bxf3 {[%clk 0:06:53]} 0-1


[Site "http://www.Chess.com"]

[Event "FIDE World Rapid Chess Championship 2021"]
[White "Saraci, Nderim"]
[Black "Kadric, Denis"]
[WhiteFideId "6351921"]
[BlackFideId "14403803"]
[WhiteElo "2414"]
[BlackElo "2542"]
[Result "1-0"]
[Round "09"]
[TimeControl "900+10"]
[Date "2021.12.27"]
[WhiteClock "0:00:26"]
[BlackClock "0:00:08"]

1. e4 {[%clk 0:15:00]}  d6 {[%clk 0:15:00]} 2. d4 {[%clk 0:15:00]}  Nf6 {[%clk 0:15:00]} 3. Nc3 {[%clk 0:15:00]}  e5 {[%clk 0:15:00]} 4. Nf3 {[%clk 0:15:00]}  Nbd7 {[%clk 0:15:00]} 5. Bc4 {[%clk 0:15:00]}  Be7 {[%clk 0:15:00]} 6. O-O {[%clk 0:15:00]}  O-O {[%clk 0:15:00]} 7. h3 {[%clk 0:15:00]}  c6 {[%clk 0:15:00]} 8. a4 {[%clk 0:15:00]}  h6 {[%clk 0:15:00]} 9. Qe2 {[%clk 0:14:50]}  exd4 {[%clk 0:16:03]} 10. Nxd4 {[%clk 0:14:50]}  Re8 {[%clk 0:16:03]} 11. Ba2 {[%clk 0:14:05]}  Bf8 {[%clk 0:13:02]} 12. Qf3 {[%clk 0:12:41]}  Nc5 {[%clk 0:12:05]} 13. Re1 {[%clk 0:12:41]}  d5 {[%clk 0:12:02]} 14. e5 {[%clk 0:10:16]}  Nh7 {[%clk 0:12:02]} 15. Qg3 {[%clk 0:10:24]}  Kh8 {[%clk 0:09:13]} 16. Be3 {[%clk 0:10:24]}  Qc7 {[%clk 0:09:10]} 17. f4 {[%clk 0:07:36]}  Ne6 {[%clk 0:06:52]} 18. Rad1 {[%clk 0:07:24]}  Bd7 {[%clk 0:06:52]} 19. Qf2 {[%clk 0:06:38]}  b6 {[%clk 0:05:15]} 20. Nce2 {[%clk 0:06:38]}  Nc5 {[%clk 0:05:15]} 21. Ng3 {[%clk 0:05:31]}  f6 {[%clk 0:04:13]} 22. Nf3 {[%clk 0:05:31]}  Nxa4 {[%clk 0:04:13]} 23. c3 {[%clk 0:05:31]}  Be7 {[%clk 0:01:57]} 24. Bb1 {[%clk 0:05:06]}  Nf8 {[%clk 0:01:57]} 25. Bd4 {[%clk 0:05:06]}  fxe5 {[%clk 0:01:07]} 26. Nxe5 {[%clk 0:03:53]}  Bh4 {[%clk 0:00:10]} 27. Nf7+ {[%clk 0:02:43]}  Kg8 {[%clk 0:00:10]} 28. Be5 {[%clk 0:02:43]}  Rxe5 {[%clk 0:00:10]} 29. Nxe5 {[%clk 0:02:43]}  Nxb2 {[%clk 0:00:10]} 30. Qxb2 {[%clk 0:02:43]}  Bxg3 {[%clk 0:00:10]} 31. Rf1 {[%clk 0:02:43]}  Bxf4 {[%clk 0:00:10]} 32. Rxf4 {[%clk 0:02:43]}  Qxe5 {[%clk 0:00:10]} 33. Rdf1 {[%clk 0:02:43]}  Ne6 {[%clk 0:00:08]} 34. Rf7 {[%clk 0:01:50]}  Rf8 {[%clk 0:00:08]} 35. Qf2 {[%clk 0:01:50]}  Rd8 {[%clk 0:00:08]} 36. h4 {[%clk 0:01:50]}  Kh8 {[%clk 0:00:08]} 37. Rf8+ {[%clk 0:00:26]} 1-0


[Site "http://www.Chess.com"]

[Event "FIDE World Rapid Chess Championship 2021"]
[White "Baum, Jonasz"]
[Black "Gagunashvili, Merab"]
[WhiteFideId "1195360"]
[BlackFideId "13601652"]
[WhiteElo "2343"]
[BlackElo "2538"]
[Result "0-1"]
[Round "09"]
[TimeControl "900+10"]
[Date "2021.12.27"]
[WhiteClock "0:00:48"]
[BlackClock "0:01:02"]

1. d4 {[%clk 0:15:00]}  d5 {[%clk 0:15:00]} 2. c4 {[%clk 0:15:00]}  c6 {[%clk 0:15:00]} 3. Nf3 {[%clk 0:15:00]}  Nf6 {[%clk 0:15:00]} 4. Nc3 {[%clk 0:15:00]}  dxc4 {[%clk 0:15:00]} 5. a4 {[%clk 0:15:00]}  Bf5 {[%clk 0:15:00]} 6. e3 {[%clk 0:15:00]}  e6 {[%clk 0:15:00]} 7. Bxc4 {[%clk 0:15:00]}  Bb4 {[%clk 0:15:00]} 8. O-O {[%clk 0:15:00]}  O-O {[%clk 0:15:00]} 9. Nh4 {[%clk 0:14:04]}  Bg4 {[%clk 0:16:16]} 10. f3 {[%clk 0:14:04]}  Bh5 {[%clk 0:16:16]} 11. g4 {[%clk 0:14:04]}  Bg6 {[%clk 0:16:16]} 12. Nxg6 {[%clk 0:11:36]}  hxg6 {[%clk 0:16:48]} 13. e4 {[%clk 0:11:36]}  Nbd7 {[%clk 0:16:48]} 14. Qb3 {[%clk 0:10:05]}  Qb6 {[%clk 0:16:49]} 15. Be3 {[%clk 0:10:05]}  e5 {[%clk 0:16:49]} 16. Rad1 {[%clk 0:07:24]}  Rad8 {[%clk 0:15:57]} 17. Kg2 {[%clk 0:07:24]}  exd4 {[%clk 0:15:21]} 18. Rxd4 {[%clk 0:06:14]}  Bc5 {[%clk 0:15:21]} 19. Qxb6 {[%clk 0:06:14]}  axb6 {[%clk 0:09:34]} 20. Rd3 {[%clk 0:05:56]}  Ne5 {[%clk 0:09:34]} 21. Rxd8 {[%clk 0:05:56]}  Rxd8 {[%clk 0:09:34]} 22. Bxc5 {[%clk 0:05:56]}  bxc5 {[%clk 0:09:34]} 23. Ba2 {[%clk 0:05:52]}  g5 {[%clk 0:08:25]} 24. Rd1 {[%clk 0:05:52]}  Rxd1 {[%clk 0:07:56]} 25. Nxd1 {[%clk 0:04:15]}  Kf8 {[%clk 0:07:56]} 26. Kf2 {[%clk 0:04:15]}  Ke7 {[%clk 0:07:56]} 27. Ke2 {[%clk 0:04:15]}  Nfd7 {[%clk 0:07:56]} 28. Ne3 {[%clk 0:03:27]}  g6 {[%clk 0:05:52]} 29. a5 {[%clk 0:03:27]}  Kd6 {[%clk 0:05:39]} 30. Bc4 {[%clk 0:01:17]}  Kc7 {[%clk 0:05:39]} 31. b3 {[%clk 0:01:17]}  b6 {[%clk 0:05:39]} 32. axb6+ {[%clk 0:01:17]}  Kxb6 {[%clk 0:05:19]} 33. Kf2 {[%clk 0:00:14]}  Ka5 {[%clk 0:05:19]} 34. Be2 {[%clk 0:00:14]}  Kb4 {[%clk 0:05:19]} 35. h4 {[%clk 0:00:14]}  gxh4 {[%clk 0:05:19]} 36. f4 {[%clk 0:00:14]}  Kxb3 {[%clk 0:05:19]} 37. fxe5 {[%clk 0:00:14]}  Nxe5 {[%clk 0:05:19]} 38. g5 {[%clk 0:00:14]}  c4 {[%clk 0:05:19]} 39. Bd1+ {[%clk 0:00:14]}  Kb2 {[%clk 0:03:51]} 40. Ba4 {[%clk 0:00:13]}  c5 {[%clk 0:03:51]} 41. Kg2 {[%clk 0:00:13]}  Kc3 {[%clk 0:03:51]} 42. Kh3 {[%clk 0:00:13]}  Kd3 {[%clk 0:03:51]} 43. Nc2 {[%clk 0:00:13]}  Kxe4 {[%clk 0:02:02]} 44. Kxh4 {[%clk 0:00:19]}  Kf4 {[%clk 0:02:02]} 45. Bb5 {[%clk 0:00:19]}  Nf3+ {[%clk 0:02:02]} 46. Kh3 {[%clk 0:00:19]}  Nxg5+ {[%clk 0:02:02]} 47. Kg2 {[%clk 0:00:19]}  c3 {[%clk 0:02:02]} 48. Be8 {[%clk 0:00:19]}  Ke4 {[%clk 0:02:11]} 49. Kf1 {[%clk 0:00:12]}  Kd3 {[%clk 0:02:11]} 50. Ba4 {[%clk 0:00:12]}  Nf3 {[%clk 0:02:11]} 51. Kf2 {[%clk 0:00:12]}  Nd4 {[%clk 0:02:11]} 52. Ne1+ {[%clk 0:00:12]}  Kd2 {[%clk 0:02:11]} 53. Be8 {[%clk 0:00:12]}  f6 {[%clk 0:02:11]} 54. Bxg6 {[%clk 0:00:12]}  c2 {[%clk 0:02:11]} 55. Nxc2 {[%clk 0:00:12]}  Nxc2 {[%clk 0:02:11]} 56. Kf3 {[%clk 0:00:12]}  c4 {[%clk 0:02:11]} 57. Ke4 {[%clk 0:00:12]}  c3 {[%clk 0:02:11]} 58. Be8 {[%clk 0:00:12]}  Nd4 {[%clk 0:02:11]} 59. Ba4 {[%clk 0:00:12]}  Ne6 {[%clk 0:02:11]} 60. Kd5 {[%clk 0:00:48]}  f5 {[%clk 0:01:02]} 0-1


[Site "http://www.Chess.com"]

[Event "FIDE World Rapid Chess Championship 2021"]
[White "Lima, Darcy"]
[Black "Sadzikowski, Daniel"]
[WhiteFideId "2100045"]
[BlackFideId "1132253"]
[WhiteElo "2505"]
[BlackElo "2414"]
[Result "1/2-1/2"]
[Round "09"]
[TimeControl "900+10"]
[Date "2021.12.27"]
[WhiteClock "0:02:45"]
[BlackClock "0:02:58"]

1. d4 {[%clk 0:15:00]}  Nf6 {[%clk 0:15:00]} 2. c4 {[%clk 0:15:00]}  e6 {[%clk 0:15:00]} 3. Nf3 {[%clk 0:15:00]}  d5 {[%clk 0:15:00]} 4. g3 {[%clk 0:15:00]}  Be7 {[%clk 0:15:00]} 5. Bg2 {[%clk 0:15:00]}  O-O {[%clk 0:15:00]} 6. O-O {[%clk 0:15:00]}  Nbd7 {[%clk 0:15:00]} 7. Qc2 {[%clk 0:15:00]}  c6 {[%clk 0:15:00]} 8. Rd1 {[%clk 0:15:00]}  b6 {[%clk 0:15:00]} 9. b3 {[%clk 0:15:00]}  Bb7 {[%clk 0:14:36]} 10. Nc3 {[%clk 0:15:41]}  Rc8 {[%clk 0:14:36]} 11. e4 {[%clk 0:15:41]}  h6 {[%clk 0:14:36]} 12. Bb2 {[%clk 0:15:41]}  Qc7 {[%clk 0:12:52]} 13. Rac1 {[%clk 0:15:35]}  dxe4 {[%clk 0:12:52]} 14. Nxe4 {[%clk 0:13:04]}  c5 {[%clk 0:12:52]} 15. Nxf6+ {[%clk 0:13:04]}  Bxf6 {[%clk 0:11:15]} 16. dxc5 {[%clk 0:12:50]}  bxc5 {[%clk 0:11:15]} 17. Bxf6 {[%clk 0:12:50]}  Nxf6 {[%clk 0:11:15]} 18. Qe2 {[%clk 0:12:50]}  Bxf3 {[%clk 0:11:15]} 19. Bxf3 {[%clk 0:12:11]}  Rfd8 {[%clk 0:09:07]} 20. Rd2 {[%clk 0:12:11]}  Rxd2 {[%clk 0:09:07]} 21. Qxd2 {[%clk 0:12:11]}  Rd8 {[%clk 0:09:07]} 22. Qc3 {[%clk 0:12:11]}  a5 {[%clk 0:09:07]} 23. Rd1 {[%clk 0:12:11]}  Rxd1+ {[%clk 0:08:46]} 24. Bxd1 {[%clk 0:10:37]}  Kf8 {[%clk 0:08:47]} 25. a3 {[%clk 0:10:37]}  Nd7 {[%clk 0:08:39]} 26. Bc2 {[%clk 0:09:35]}  Ne5 {[%clk 0:08:39]} 27. Be4 {[%clk 0:09:35]}  f5 {[%clk 0:06:14]} 28. f4 {[%clk 0:08:54]}  Nd7 {[%clk 0:06:14]} 29. Bg2 {[%clk 0:08:03]}  Nf6 {[%clk 0:05:47]} 30. h3 {[%clk 0:08:03]}  Kf7 {[%clk 0:05:47]} 31. Qe3 {[%clk 0:05:51]}  Qd6 {[%clk 0:05:25]} 32. Bf3 {[%clk 0:05:51]}  g5 {[%clk 0:05:25]} 33. Kf2 {[%clk 0:05:51]}  Kg6 {[%clk 0:05:25]} 34. Ke2 {[%clk 0:05:51]}  gxf4 {[%clk 0:03:58]} 35. gxf4 {[%clk 0:04:20]}  Kf7 {[%clk 0:03:58]} 36. Qd2 {[%clk 0:04:20]}  Qxd2+ {[%clk 0:03:56]} 37. Kxd2 {[%clk 0:04:13]}  Ke7 {[%clk 0:03:56]} 38. Kc3 {[%clk 0:04:13]}  Kd6 {[%clk 0:03:56]} 39. b4 {[%clk 0:04:13]}  axb4+ {[%clk 0:03:56]} 40. axb4 {[%clk 0:04:13]}  cxb4+ {[%clk 0:03:56]} 41. Kxb4 {[%clk 0:04:13]}  Nd7 {[%clk 0:03:56]} 42. Kb5 {[%clk 0:04:13]}  Nc5 {[%clk 0:03:56]} 43. Be2 {[%clk 0:04:13]}  Nd7 {[%clk 0:03:56]} 44. Bf1 {[%clk 0:02:45]}  Nc5 {[%clk 0:02:58]} 45. Be2 {[%clk 0:02:45]} 1/2-1/2


[Site "http://www.Chess.com"]

[Event "FIDE World Rapid Chess Championship 2021"]
[White "Blanco Acevedo, Cristobal Jose"]
[Black "Zilka, Stepan"]
[WhiteFideId "3900525"]
[BlackFideId "315303"]
[WhiteElo "2289"]
[BlackElo "2474"]
[Result "0-1"]
[Round "09"]
[TimeControl "900+10"]
[Date "2021.12.27"]
[WhiteClock "0:00:14"]
[BlackClock "0:03:51"]

1. d4 {[%clk 0:15:00]}  d5 {[%clk 0:15:00]} 2. Nf3 {[%clk 0:15:00]}  Nf6 {[%clk 0:15:00]} 3. c4 {[%clk 0:15:00]}  c6 {[%clk 0:15:00]} 4. e3 {[%clk 0:15:00]}  e6 {[%clk 0:15:00]} 5. Nc3 {[%clk 0:15:00]}  Nbd7 {[%clk 0:15:00]} 6. Qc2 {[%clk 0:15:00]}  Bd6 {[%clk 0:15:00]} 7. Bd3 {[%clk 0:15:00]}  O-O {[%clk 0:15:11]} 8. b3 {[%clk 0:14:30]}  h6 {[%clk 0:15:11]} 9. Bb2 {[%clk 0:14:30]}  b6 {[%clk 0:14:26]} 10. e4 {[%clk 0:13:05]}  dxe4 {[%clk 0:14:26]} 11. Nxe4 {[%clk 0:13:05]}  Nxe4 {[%clk 0:14:26]} 12. Bxe4 {[%clk 0:13:05]}  Bb7 {[%clk 0:14:26]} 13. O-O-O {[%clk 0:13:05]}  Nf6 {[%clk 0:14:26]} 14. Bd3 {[%clk 0:13:05]}  Qe7 {[%clk 0:14:26]} 15. Kb1 {[%clk 0:11:29]}  a5 {[%clk 0:14:41]} 16. g4 {[%clk 0:11:07]}  Ba3 {[%clk 0:14:46]} 17. Ba1 {[%clk 0:11:07]}  c5 {[%clk 0:13:37]} 18. g5 {[%clk 0:07:28]}  Bxf3 {[%clk 0:09:13]} 19. gxf6 {[%clk 0:05:35]}  Bxd1 {[%clk 0:09:13]} 20. Bh7+ {[%clk 0:05:35]}  Kh8 {[%clk 0:09:13]} 21. fxg7+ {[%clk 0:03:29]}  Kxg7 {[%clk 0:09:40]} 22. d5+ {[%clk 0:03:29]}  f6 {[%clk 0:09:40]} 23. Rxd1 {[%clk 0:03:29]}  Kh8 {[%clk 0:09:40]} 24. Be4 {[%clk 0:03:29]}  exd5 {[%clk 0:09:40]} 25. cxd5 {[%clk 0:02:14]}  c4 {[%clk 0:09:25]} 26. f3 {[%clk 0:02:14]}  cxb3 {[%clk 0:09:25]} 27. Qd2 {[%clk 0:02:14]}  Qg7 {[%clk 0:09:25]} 28. axb3 {[%clk 0:00:28]}  Bd6 {[%clk 0:08:53]} 29. Bd4 {[%clk 0:00:28]}  Qg5 {[%clk 0:08:53]} 30. Be3 {[%clk 0:00:28]}  Qh4 {[%clk 0:08:53]} 31. Bxh6 {[%clk 0:00:28]}  Rfc8 {[%clk 0:06:53]} 32. Be3 {[%clk 0:00:19]}  Bb4 {[%clk 0:06:53]} 33. Qe2 {[%clk 0:00:19]}  Rc3 {[%clk 0:05:28]} 34. Bd4 {[%clk 0:00:15]}  Rxb3+ {[%clk 0:05:28]} 35. Ka2 {[%clk 0:00:15]}  a4 {[%clk 0:05:28]} 36. Bc2 {[%clk 0:00:24]}  Bc3 {[%clk 0:03:51]} 37. Bf2 {[%clk 0:00:14]}  Ra3+ {[%clk 0:03:51]} 0-1


[Site "http://www.Chess.com"]

[Event "FIDE World Rapid Chess Championship 2021"]
[White "Postny, Evgeny"]
[Black "Dragnev, Valentin"]
[WhiteFideId "2804344"]
[BlackFideId "1634852"]
[WhiteElo "2454"]
[BlackElo "2409"]
[Result "1-0"]
[Round "09"]
[TimeControl "900+10"]
[Date "2021.12.27"]
[WhiteClock "0:00:39"]
[BlackClock "0:02:06"]

1. d4 {[%clk 0:15:00]}  Nf6 {[%clk 0:15:00]} 2. Bg5 {[%clk 0:15:00]}  d5 {[%clk 0:15:00]} 3. e3 {[%clk 0:15:00]}  c5 {[%clk 0:15:00]} 4. Bxf6 {[%clk 0:15:00]}  gxf6 {[%clk 0:15:00]} 5. dxc5 {[%clk 0:15:00]}  e6 {[%clk 0:15:00]} 6. c4 {[%clk 0:15:00]}  dxc4 {[%clk 0:15:00]} 7. Nd2 {[%clk 0:15:00]}  c3 {[%clk 0:15:00]} 8. bxc3 {[%clk 0:15:00]}  Nd7 {[%clk 0:15:00]} 9. c6 {[%clk 0:15:00]}  bxc6 {[%clk 0:15:00]} 10. Ngf3 {[%clk 0:14:56]}  Bg7 {[%clk 0:15:28]} 11. Be2 {[%clk 0:14:56]}  O-O {[%clk 0:15:28]} 12. O-O {[%clk 0:14:56]}  f5 {[%clk 0:15:28]} 13. Qc2 {[%clk 0:14:56]}  Bb7 {[%clk 0:15:14]} 14. Nc4 {[%clk 0:13:35]}  Qc7 {[%clk 0:15:14]} 15. Nfd2 {[%clk 0:13:35]}  Rfd8 {[%clk 0:14:57]} 16. Rab1 {[%clk 0:11:56]}  c5 {[%clk 0:14:57]} 17. Rxb7 {[%clk 0:11:56]}  Qxb7 {[%clk 0:14:57]} 18. Bf3 {[%clk 0:11:56]}  Qc7 {[%clk 0:12:45]} 19. Bxa8 {[%clk 0:11:28]}  Rxa8 {[%clk 0:12:45]} 20. e4 {[%clk 0:11:28]}  fxe4 {[%clk 0:12:45]} 21. Nxe4 {[%clk 0:10:41]}  Ne5 {[%clk 0:12:45]} 22. Qe2 {[%clk 0:10:38]}  Rd8 {[%clk 0:09:28]} 23. h3 {[%clk 0:08:08]}  h6 {[%clk 0:09:01]} 24. Rb1 {[%clk 0:07:09]}  Nxc4 {[%clk 0:06:21]} 25. Qxc4 {[%clk 0:04:43]}  Rd5 {[%clk 0:06:21]} 26. Qa4 {[%clk 0:04:43]}  Kh7 {[%clk 0:06:21]} 27. Ng3 {[%clk 0:03:30]}  Qd7 {[%clk 0:05:04]} 28. Qe4+ {[%clk 0:01:52]}  f5 {[%clk 0:04:08]} 29. Qe3 {[%clk 0:01:52]}  c4 {[%clk 0:04:08]} 30. Qe2 {[%clk 0:00:57]}  Rd3 {[%clk 0:03:31]} 31. Nh5 {[%clk 0:00:57]}  Rxc3 {[%clk 0:03:31]} 32. Nxg7 {[%clk 0:00:57]}  Qd3 {[%clk 0:03:31]} 33. Qe1 {[%clk 0:00:57]}  Kxg7 {[%clk 0:03:31]} 34. Qe5+ {[%clk 0:00:57]}  Kg6 {[%clk 0:02:06]} 35. Qxe6+ {[%clk 0:00:39]}  Kg5 {[%clk 0:02:06]} 36. Qe7+ {[%clk 0:00:39]}  Kf4 {[%clk 0:02:06]} 37. Re1 {[%clk 0:00:39]} 1-0


[Site "http://www.Chess.com"]

[Event "FIDE World Rapid Chess Championship 2021"]
[White "Krasenkow, Michal"]
[Black "Aditya, Mittal"]
[WhiteFideId "1113100"]
[BlackFideId "35042025"]
[WhiteElo "2430"]
[BlackElo "1488"]
[Result "1-0"]
[Round "09"]
[TimeControl "900+10"]
[Date "2021.12.27"]
[WhiteClock "0:01:21"]
[BlackClock "0:00:26"]

1. d4 {[%clk 0:15:00]}  Nf6 {[%clk 0:15:00]} 2. c4 {[%clk 0:15:00]}  e6 {[%clk 0:15:00]} 3. Nf3 {[%clk 0:15:00]}  d5 {[%clk 0:15:00]} 4. g3 {[%clk 0:15:00]}  Bb4+ {[%clk 0:15:00]} 5. Bd2 {[%clk 0:15:00]}  Bd6 {[%clk 0:15:00]} 6. Qc2 {[%clk 0:15:00]}  O-O {[%clk 0:15:00]} 7. Bg5 {[%clk 0:15:00]}  Nbd7 {[%clk 0:15:00]} 8. Nbd2 {[%clk 0:15:00]}  h6 {[%clk 0:15:00]} 9. Bxf6 {[%clk 0:16:09]}  Nxf6 {[%clk 0:14:19]} 10. Bg2 {[%clk 0:16:09]}  b6 {[%clk 0:14:19]} 11. O-O {[%clk 0:16:09]}  Bb7 {[%clk 0:14:19]} 12. cxd5 {[%clk 0:16:09]}  exd5 {[%clk 0:14:19]} 13. Nh4 {[%clk 0:16:09]}  Re8 {[%clk 0:13:36]} 14. Nc4 {[%clk 0:15:28]}  Bf8 {[%clk 0:13:36]} 15. Ne5 {[%clk 0:15:28]}  c5 {[%clk 0:13:36]} 16. e3 {[%clk 0:15:28]}  Rc8 {[%clk 0:13:36]} 17. Qe2 {[%clk 0:15:24]}  Rc7 {[%clk 0:11:25]} 18. f4 {[%clk 0:12:48]}  Qc8 {[%clk 0:11:25]} 19. Rfc1 {[%clk 0:12:56]}  cxd4 {[%clk 0:08:51]} 20. Rxc7 {[%clk 0:12:56]}  Qxc7 {[%clk 0:08:51]} 21. exd4 {[%clk 0:12:56]}  Rc8 {[%clk 0:08:51]} 22. Bh3 {[%clk 0:12:56]}  Qc2 {[%clk 0:08:11]} 23. Qb5 {[%clk 0:11:03]}  Rc7 {[%clk 0:08:11]} 24. Nhf3 {[%clk 0:11:03]}  Ne4 {[%clk 0:07:48]} 25. Rf1 {[%clk 0:10:05]}  Nd6 {[%clk 0:07:48]} 26. Qb3 {[%clk 0:10:05]}  Ba6 {[%clk 0:05:33]} 27. Qxc2 {[%clk 0:09:14]}  Rxc2 {[%clk 0:05:33]} 28. Rb1 {[%clk 0:09:14]}  Bc4 {[%clk 0:03:47]} 29. Nxc4 {[%clk 0:08:14]}  Nxc4 {[%clk 0:03:47]} 30. Ne5 {[%clk 0:05:20]}  Nxe5 {[%clk 0:03:56]} 31. dxe5 {[%clk 0:05:20]}  Bc5+ {[%clk 0:03:56]} 32. Kh1 {[%clk 0:05:20]}  Be3 {[%clk 0:03:56]} 33. Bf5 {[%clk 0:04:55]}  Rf2 {[%clk 0:02:44]} 34. Bd3 {[%clk 0:04:55]}  g6 {[%clk 0:01:55]} 35. a4 {[%clk 0:03:33]}  Rd2 {[%clk 0:01:55]} 36. Bb5 {[%clk 0:03:33]}  d4 {[%clk 0:01:55]} 37. b4 {[%clk 0:03:33]}  Ra2 {[%clk 0:01:55]} 38. Re1 {[%clk 0:03:33]}  Rb2 {[%clk 0:01:55]} 39. Re2 {[%clk 0:03:33]}  Rxb4 {[%clk 0:01:55]} 40. Rc2 {[%clk 0:03:02]}  a6 {[%clk 0:01:06]} 41. Bxa6 {[%clk 0:03:02]}  Rxa4 {[%clk 0:01:06]} 42. Rc8+ {[%clk 0:03:02]}  Kg7 {[%clk 0:01:06]} 43. Bc4 {[%clk 0:03:02]}  Ra7 {[%clk 0:01:06]} 44. Kg2 {[%clk 0:03:02]}  Rd7 {[%clk 0:01:06]} 45. Bd3 {[%clk 0:03:02]}  Rd5 {[%clk 0:00:25]} 46. Kf3 {[%clk 0:02:25]}  Rc5 {[%clk 0:00:25]} 47. Rb8 {[%clk 0:02:25]}  Rc6 {[%clk 0:00:25]} 48. Ke4 {[%clk 0:02:25]}  f5+ {[%clk 0:00:25]} 49. Kd5 {[%clk 0:02:25]}  Rc5+ {[%clk 0:00:25]} 50. Kd6 {[%clk 0:02:25]}  Rc3 {[%clk 0:00:25]} 51. e6 {[%clk 0:02:25]}  Bc1 {[%clk 0:00:25]} 52. Ra8 {[%clk 0:01:21]}  Ra3 {[%clk 0:00:26]} 53. Ba6 {[%clk 0:01:21]}  Re3 {[%clk 0:00:26]} 54. Ra7+ {[%clk 0:01:21]}  Kh8 {[%clk 0:00:26]} 55. Bc4 {[%clk 0:01:21]}  d3 {[%clk 0:00:26]} 56. e7 {[%clk 0:01:21]}  d2 {[%clk 0:00:26]} 57. Bb3 {[%clk 0:01:21]}  Rd3+ {[%clk 0:00:26]} 58. Ke6 {[%clk 0:01:21]}  Re3+ {[%clk 0:00:26]} 59. Kf7 {[%clk 0:01:21]} 1-0


[Site "http://www.Chess.com"]